bitfinex/quotes_BTCUSD_20240629
["timestamp","ask_amount","ask_price","bid_price","bid_amount"]
[1719621322733,2.01801028,60837.0,60836.0,0.18633898]
[1719621323023,0.09980228,60837.0,60836.0,0.20576607]
[1719621323287,0.1,60846.0,60845.0,0.00793194]
[1719621323527,0.1818,60852.0,60851.0,0.00793194]
[1719621323767,0.1818,60857.0,60856.0,0.00793194]
[1719621323987,0.319706,60857.0,60856.0,0.00793194]
[1719621324682,0.1818,60857.0,60856.0,0.00793194]
[1719621325172,0.419706,60857.0,60856.0,0.01593194]
[1719621325382,0.419706,60857.0,60856.0,0.00793194]
[1719621326106,0.419706,60857.0,60856.0,0.01]
[1719621326813,0.653806,60857.0,60856.0,0.019]
[1719621327502,0.653806,60857.0,60856.0,0.009]
[1719621327942,0.672452,60857.0,60856.0,0.018]
[1719621328488,0.67210336,60857.0,60856.0,0.018]
[1719621329630,0.53419736,60857.0,60856.0,0.018]
[1719621330305,1.68105736,60857.0,60856.0,0.009]
[1719621330779,1.88604595,60857.0,60856.0,0.009]
[1719621331013,1.88604595,60857.0,60856.0,0.019]
[1719621331244,1.8874169,60857.0,60856.0,0.019]
[1719621331469,1.88676789,60857.0,60856.0,0.019]
[1719621331931,0.3354,60850.0,60842.0,0.00793194]
[1719621332154,0.61775,60849.0,60846.0,0.00793194]
[1719621332393,0.61775,60849.0,60847.0,0.00793194]
[1719621332394,0.367896,60848.0,60847.0,0.00793194]
[1719621332618,0.2341,60847.0,60846.0,0.00793194]
[1719621332837,0.927563,60847.0,60846.0,0.00793194]
[1719621333060,0.927563,60847.0,60842.0,0.00793194]
[1719621333291,0.813416,60846.0,60844.0,0.08433194]
[1719621333531,0.1,60846.0,60845.0,0.00793194]
[1719621333755,0.137806,60845.0,60844.0,0.08433194]
[1719621333981,0.237806,60845.0,60844.0,0.00793194]
[1719621334639,0.237806,60845.0,60844.0,0.01993194]
[1719621334926,0.237806,60845.0,60844.0,0.03393194]
[1719621335141,0.237806,60845.0,60844.0,0.00793194]
[1719621335373,0.237806,60845.0,60844.0,0.02193194]
[1719621335606,0.237806,60845.0,60844.0,0.03593194]
[1719621336294,0.137806,60845.0,60844.0,0.20999446]
[1719621336545,0.16650806,60872.0,60862.0,0.02793194]
[1719621336546,0.16594955,60863.0,60862.0,0.02793194]
[1719621336772,0.00084,60872.0,60871.0,0.00793194]
[1719621337035,0.00084,60872.0,60865.0,0.08130346]
[1719621337280,0.00084,60872.0,60871.0,0.00793194]
[1719621338241,0.00184,60872.0,60871.0,0.00793194]
[1719621338480,0.00084,60872.0,60871.0,0.00793194]
[1719621338742,0.00084,60872.0,60871.0,0.03593194]
[1719621339209,0.00084,60872.0,60871.0,0.028]
[1719621339459,0.23494,60872.0,60871.0,0.028]
[1719621339692,1.317423,60872.0,60871.0,0.028]
[1719621339925,1.417423,60872.0,60871.0,0.028]
[1719621340145,1.43500325,60872.0,60871.0,0.028]
[1719621340404,1.43500325,60872.0,60871.0,0.014]
[1719621340645,1.43500031,60872.0,60871.0,0.014]
[1719621340876,1.47069183,60872.0,60871.0,0.028]
[1719621341098,1.58860031,60872.0,60871.0,0.014]
[1719621341348,1.58860031,60872.0,60871.0,0.028]
[1719621341568,1.60066837,60872.0,60871.0,0.028]
[1719621341807,1.60066837,60872.0,60871.0,0.014]
[1719621342032,0.01206806,60870.0,60862.0,0.00793194]
[1719621342271,1.58860031,60872.0,60871.0,0.025]
[1719621342272,0.28408537,60872.0,60871.0,0.025]
[1719621342530,0.50611731,60872.0,60871.0,0.025]
[1719621342751,5.17080437,60872.0,60871.0,0.025]
[1719621342984,5.51863808,60872.0,60871.0,0.025]
[1719621343212,5.50657002,60872.0,60871.0,0.012]
[1719621343450,5.51856086,60872.0,60871.0,0.012]
[1719621343672,5.51856086,60872.0,60859.0,0.0764]
[1719621343673,0.01206806,60869.0,60859.0,0.0764]
[1719621343964,0.2341,60860.0,60859.0,0.0764]
[1719621344191,4.44094,60860.0,60859.0,0.0764]
[1719621344437,5.315619,60860.0,60850.0,0.00793194]
[1719621344673,5.315619,60860.0,60850.0,0.17027092]
[1719621344674,0.2341,60851.0,60850.0,0.17027092]
[1719621344900,0.3341,60851.0,60850.0,0.17027092]
[1719621345400,0.3341,60851.0,60845.0,0.00793194]
[1719621345401,0.4771,60851.0,60845.0,0.00793194]
[1719621345628,1.186391,60850.0,60846.0,0.16233898]
[1719621345844,1.186391,60850.0,60844.0,0.00793194]
[1719621345845,0.2341,60846.0,60844.0,0.00793194]
[1719621346086,0.1,60845.0,60844.0,0.17027092]
[1719621346337,0.1,60845.0,60844.0,0.16233898]
[1719621346565,0.14341,60845.0,60844.0,0.16233898]
[1719621347020,0.16611622,60859.0,60858.0,0.00793194]
[1719621347252,0.16609017,60862.0,60857.0,0.08130346]
[1719621347473,2.161024,60861.0,60858.0,0.00793194]
[1719621347727,1.995124,60860.0,60858.0,0.00793194]
[1719621347949,1.995124,60860.0,60859.0,0.00793194]
[1719621348196,0.1,60859.0,60857.0,0.17027092]
[1719621348419,0.101,60859.0,60858.0,0.00793194]
[1719621348908,0.101,60859.0,60858.0,0.01293194]
[1719621349152,0.001,60859.0,60858.0,0.01793194]
[1719621349370,0.001,60859.0,60858.0,0.005]
[1719621350362,3.582779,60860.0,60851.0,0.00793194]
[1719621350582,0.16607689,60856.0,60851.0,0.16233898]
[1719621350811,0.2341,60852.0,60851.0,0.16233898]
[1719621351038,0.3341,60852.0,60851.0,0.17027092]
[1719621351261,0.3341,60852.0,60851.0,0.16233898]
[1719621351755,0.3341,60852.0,60851.0,0.16333898]
[1719621351980,0.3341,60852.0,60851.0,0.17127092]
[1719621352454,0.3341,60852.0,60851.0,0.18127092]
[1719621352679,0.3341,60852.0,60851.0,0.17333898]
[1719621352912,0.1,60853.0,60851.0,0.18027092]
[1719621353131,0.843616,60852.0,60851.0,0.18027092]
[1719621353805,0.802459,60852.0,60851.0,0.18027092]
[1719621354300,0.1434,60859.0,60851.0,0.18027092]
[1719621354301,0.16607836,60864.0,60863.0,0.00793194]
[1719621354550,0.0002,60874.0,60863.0,0.00793194]
[1719621354551,0.16607836,60871.0,60866.0,0.00793194]
[1719621354783,0.16607836,60873.0,60869.0,0.00793194]
[1719621355028,0.16607836,60873.0,60869.0,0.16233898]
[1719621355249,0.16607836,60873.0,60869.0,0.17027092]
[1719621355473,0.16684114,60872.0,60869.0,0.16233898]
[1719621355899,0.16684114,60872.0,60869.0,0.17027092]
[1719621356148,1.21440936,60871.0,60869.0,0.16233898]
[1719621356376,0.16598961,60871.0,60870.0,0.00793194]
[1719621356610,0.00076278,60872.0,60870.0,0.00793194]
[1719621356860,0.00076278,60872.0,60869.0,0.17133898]
[1719621356861,1.016471,60871.0,60869.0,0.17133898]
[1719621357099,1.016471,60871.0,60869.0,0.17927092]
[1719621357100,0.26597525,60870.0,60869.0,0.17927092]
[1719621357351,1.15936278,60870.0,60869.0,0.17927092]
[1719621357568,1.16875753,60870.0,60869.0,0.019]
[1719621358017,1.16875753,60870.0,60859.0,0.0764]
[1719621358018,1.01534653,60870.0,60859.0,0.0764]
[1719621358245,0.16598013,60868.0,60866.0,0.00793194]
[1719621358465,0.16598013,60868.0,60867.0,0.00793194]
[1719621358692,0.26598013,60868.0,60867.0,0.00793194]
[1719621359167,0.26598013,60868.0,60867.0,0.31707092]
[1719621359168,4.752619,60868.0,60867.0,0.31707092]
[1719621359623,4.752619,60868.0,60867.0,0.17027092]
[1719621360062,4.752619,60868.0,60867.0,0.16233898]
[1719621360283,4.752619,60868.0,60867.0,0.17027092]
[1719621360759,4.76971531,60868.0,60867.0,0.16233898]
[1719621360995,4.76971531,60868.0,60867.0,0.17633898]
[1719621361226,4.76971531,60868.0,60867.0,0.18427092]
[1719621361444,4.76971531,60868.0,60867.0,0.17633898]
[1719621361671,4.76971531,60868.0,60867.0,0.16233898]
[1719621361902,4.76971531,60868.0,60867.0,0.17633898]
[1719621362124,4.76971531,60868.0,60867.0,0.19033898]
[1719621362345,4.76971531,60868.0,60867.0,0.16233898]
[1719621362556,4.76971531,60868.0,60867.0,0.17633898]
[1719621362774,4.76971531,60868.0,60867.0,0.19827092]
[1719621364837,4.7700119,60868.0,60867.0,0.18427092]
[1719621365039,4.7700119,60868.0,60867.0,0.16233898]
[1719621365288,4.7700119,60868.0,60867.0,0.19827092]
[1719621366025,0.1173929,60868.0,60867.0,0.18427092]
[1719621366251,4.752619,60868.0,60867.0,0.18427092]
[1719621366704,4.752619,60868.0,60867.0,0.16233898]
[1719621366977,0.00076278,60872.0,60871.0,0.02793194]
[1719621367227,0.0002,60874.0,60873.0,1.24075194]
[1719621367469,0.0002,60874.0,60873.0,1.19815898]
[1719621367699,0.00838,60879.0,60878.0,0.70065194]
[1719621367926,0.00838,60879.0,60878.0,1.22609092]
[1719621368169,0.75046174,60880.0,60879.0,0.63472194]
[1719621368388,0.75046174,60880.0,60879.0,1.03114898]
[1719621368617,0.75046174,60880.0,60879.0,1.45908092]
[1719621368872,0.75046174,60880.0,60879.0,1.23114898]
[1719621369096,0.75046174,60880.0,60879.0,1.25908092]
[1719621369352,0.75046174,60880.0,60879.0,1.24917607]
[1719621369583,0.75046174,60880.0,60879.0,1.29110801]
[1719621370045,0.75046174,60880.0,60879.0,1.49110801]
[1719621370946,0.75046174,60880.0,60879.0,1.50510801]
[1719621371163,0.75046174,60880.0,60879.0,1.30510801]
[1719621371399,0.75046174,60880.0,60879.0,1.50510801]
[1719621374533,0.75046174,60880.0,60879.0,1.27717607]
[1719621374757,0.75046174,60880.0,60879.0,1.50510801]
[1719621375601,0.75046174,60880.0,60879.0,1.30510801]
[1719621375810,0.75046174,60880.0,60879.0,1.50510801]
[1719621378279,0.0089826,60914.0,60889.0,0.22793194]
[1719621378525,0.0089826,60914.0,60913.0,0.00793194]
[1719621378737,0.0089826,60914.0,60899.0,0.09892]
[1719621378738,0.7644436,60914.0,60902.0,0.0764]
[1719621378974,0.7644436,60914.0,60903.0,0.00793194]
[1719621378975,1.480564,60913.0,60903.0,0.00793194]
[1719621379192,1.63035566,60913.0,60902.0,0.00793194]
[1719621379420,3.111619,60912.0,60903.0,0.16233898]
[1719621379661,2.57904,60911.0,60903.0,0.16233898]
[1719621380085,0.1,60910.0,60903.0,0.16233898]
[1719621380316,2.37210472,60909.0,60900.0,0.48811044]
[1719621380525,0.01206806,60905.0,60900.0,0.65044942]
[1719621380744,1.390421,60904.0,60900.0,0.65044942]
[1719621380973,0.1,60903.0,60901.0,0.16233898]
[1719621381446,1.379076,60902.0,60901.0,0.16233898]
[1719621381670,1.159076,60902.0,60901.0,0.16233898]
[1719621381881,0.685466,60902.0,60901.0,0.16233898]
[1719621382582,0.685466,60902.0,60901.0,0.17333898]
[1719621382795,0.685466,60902.0,60901.0,0.16233898]
[1719621383484,0.685466,60902.0,60901.0,0.17027092]
[1719621383710,0.685466,60902.0,60901.0,0.16233898]
[1719621383920,0.685466,60902.0,60901.0,0.17533898]
[1719621384366,0.685466,60902.0,60901.0,0.18833898]
[1719621385242,0.685466,60902.0,60901.0,0.19627092]
[1719621385473,0.685466,60902.0,60901.0,0.18833898]
[1719621388600,0.1,60902.0,60901.0,0.18833898]
[1719621388842,1.433813,60902.0,60901.0,0.18833898]
[1719621389983,1.113813,60902.0,60901.0,0.18833898]
[1719621390193,1.072687,60902.0,60901.0,0.18833898]
[1719621392684,1.072687,60902.0,60901.0,0.18827466]
[1719621393144,1.072687,60902.0,60901.0,0.1962066]
[1719621393573,1.072687,60902.0,60901.0,0.18827466]
[1719621393805,1.072687,60902.0,60901.0,0.17527466]
[1719621394481,1.072687,60902.0,60901.0,0.18827466]
[1719621394718,0.76979346,60902.0,60901.0,0.18827466]
[1719621394961,1.661836,60903.0,60901.0,0.18827466]
[1719621395185,1.228271,60902.0,60901.0,0.18827466]
[1719621395639,1.38147616,60902.0,60901.0,0.026]
[1719621395868,1.38147616,60902.0,60884.0,1.05650346]
[1719621395869,0.3333,60895.0,60885.0,0.0764]
[1719621396093,0.3333,60895.0,60894.0,0.48811044]
[1719621396317,3.290115,60894.0,60885.0,0.16233898]
[1719621396549,0.2338,60887.0,60885.0,0.16233898]
[1719621396786,1.368271,60886.0,60885.0,0.17027092]
[1719621397035,1.261531,60886.0,60885.0,0.16233898]
[1719621397739,1.261531,60886.0,60885.0,0.17027092]
[1719621397740,0.976531,60886.0,60885.0,0.17027092]
[1719621398196,0.65118892,60886.0,60885.0,0.17727092]
[1719621398412,0.65118892,60886.0,60885.0,0.17027092]
[1719621398598,0.65018892,60886.0,60885.0,0.17033898]
[1719621398872,0.65018892,60886.0,60885.0,0.18033898]
[1719621398873,0.65118892,60886.0,60885.0,0.18033898]
[1719621399145,0.65118892,60886.0,60885.0,0.17033898]
[1719621399855,0.65118892,60886.0,60885.0,0.17027092]
[1719621400293,0.65118892,60886.0,60885.0,0.16533898]
[1719621400294,0.75218892,60886.0,60885.0,0.16533898]
[1719621400507,0.75318892,60886.0,60885.0,0.17233898]
[1719621400740,0.75218892,60886.0,60885.0,0.007]
[1719621400976,0.1502,60885.0,60875.0,0.48811044]
[1719621401213,0.1,60884.0,60876.0,0.16233898]
[1719621401503,1.659507,60883.0,60876.0,0.16233898]
[1719621401758,1.322927,60882.0,60876.0,0.16233898]
[1719621401987,1.571694,60881.0,60876.0,0.16233898]
[1719621402201,0.1,60884.0,60876.0,0.16233898]
[1719621402430,2.868081,60883.0,60876.0,0.16733898]
[1719621402644,0.1,60882.0,60876.0,0.16733898]
[1719621402861,1.471694,60881.0,60876.0,0.16733898]
[1719621403077,0.1,60880.0,60877.0,0.00793194]
[1719621403292,0.1,60880.0,60879.0,0.00793194]
[1719621403517,0.1,60880.0,60879.0,0.17027092]
[1719621404002,0.653582,60880.0,60877.0,0.00793194]
[1719621404193,1.652051,60879.0,60878.0,0.16233898]
[1719621404407,1.752051,60879.0,60878.0,0.16233898]
[1719621404632,1.752051,60879.0,60877.0,0.01893194]
[1719621404633,1.509749,60879.0,60877.0,0.011]
[1719621404869,2.490621,60878.0,60876.0,0.00793194]
[1719621405071,1.59602,60877.0,60876.0,0.00793194]
[1719621405753,1.69602,60877.0,60876.0,0.00793194]
[1719621406657,1.76116404,60877.0,60876.0,0.00793194]
[1719621407126,2.39233604,60877.0,60876.0,0.00793194]
[1719621407354,2.327192,60877.0,60876.0,0.00793194]
[1719621407608,1.09579,60877.0,60876.0,0.00793194]
[1719621407831,1.09579,60877.0,60876.0,0.02093194]
[1719621408038,1.09579,60877.0,60876.0,0.03493194]
[1719621408250,1.09579,60877.0,60876.0,0.02193194]
[1719621408251,1.09679,60877.0,60876.0,0.02193194]
[1719621408463,1.09779,60877.0,60876.0,0.03593194]
[1719621409329,1.09779,60877.0,60876.0,0.03685594]
[1719621410182,1.09779,60877.0,60876.0,0.03678635]
[1719621411979,1.09437358,60877.0,60876.0,0.02278635]
[1719621412194,1.09537358,60877.0,60876.0,0.03078635]
[1719621412854,1.09437358,60877.0,60876.0,0.01678635]
[1719621413075,1.09537358,60877.0,60876.0,0.02578635]
[1719621416551,0.81802282,60877.0,60876.0,0.02578635]
[1719621418663,0.91802282,60877.0,60876.0,0.02578635]
[1719621418890,0.93511664,60877.0,60876.0,0.01778635]
[1719621419104,0.93411664,60877.0,60876.0,0.01778635]
[1719621419318,0.93411664,60877.0,60876.0,0.02578635]
[1719621419319,0.93511664,60877.0,60876.0,0.02578635]
[1719621419535,0.93411664,60877.0,60876.0,0.01678635]
[1719621419999,0.93511664,60877.0,60876.0,0.02578635]
[1719621420486,0.11809382,60877.0,60876.0,0.01678635]
[1719621420704,0.739634,60877.0,60876.0,0.02678635]
[1719621421127,0.738634,60877.0,60876.0,0.01678635]
[1719621421637,0.739634,60877.0,60876.0,0.02778635]
[1719621421850,0.738634,60877.0,60876.0,0.01978635]
[1719621422097,0.75672772,60877.0,60876.0,0.02878635]
[1719621422348,0.77282145,60877.0,60876.0,0.01978635]
[1719621422800,0.77382145,60877.0,60876.0,0.03078635]
[1719621423068,0.76374745,60877.0,60876.0,0.03078635]
[1719621424241,0.74665372,60877.0,60876.0,0.03078635]
[1719621424454,0.76374756,60877.0,60876.0,0.022924]
[1719621424927,0.91984756,60877.0,60876.0,0.022924]
[1719621425407,1.45082301,60877.0,60876.0,0.022924]
[1719621425629,1.15364756,60877.0,60876.0,0.022924]
[1719621425841,1.37348521,60877.0,60876.0,0.022924]
[1719621426059,1.36034756,60877.0,60876.0,0.011924]
[1719621426298,1.35934756,60877.0,60876.0,0.011924]
[1719621426532,1.51189553,60877.0,60876.0,0.022924]
[1719621426792,1.49975788,60877.0,60876.0,0.022924]
[1719621427479,1.51189715,60877.0,60876.0,0.022924]
[1719621428139,1.36134918,60877.0,60876.0,0.022924]
[1719621429715,1.37348683,60877.0,60876.0,0.02284615]
[1719621430397,1.36134918,60877.0,60876.0,0.02284615]
[1719621430649,1.36135036,60877.0,60876.0,0.02284615]
[1719621430862,1.37348801,60877.0,60876.0,0.02284615]
[1719621431123,1.34425372,60877.0,60876.0,0.02284615]
[1719621431339,1.36135039,60877.0,60876.0,0.02284615]
[1719621431570,1.37348804,60877.0,60876.0,0.02284615]
[1719621432046,0.74592804,60877.0,60876.0,0.02284615]
[1719621432480,4.23242004,60877.0,60876.0,0.02284615]
[1719621432679,0.74592804,60877.0,60876.0,0.02284615]
[1719621433022,4.39475375,60877.0,60876.0,0.02284615]
[1719621433247,4.95187875,60877.0,60876.0,0.02284615]
[1719621433685,4.93478208,60877.0,60876.0,0.02284615]
[1719621433912,4.95187886,60877.0,60876.0,0.02284615]
[1719621435110,0.2077,60875.0,60859.0,0.48811044]
[1719621435330,0.24593765,60865.0,60859.0,0.48811044]
[1719621435549,3.91401387,60864.0,60859.0,0.48811044]
[1719621435775,3.65576639,60863.0,60859.0,0.48811044]
[1719621436003,0.1,60862.0,60857.0,0.00786235]
[1719621436221,0.1,60862.0,60850.0,0.00786235]
[1719621436222,0.4415,60857.0,60850.0,0.00786235]
[1719621436447,0.4415,60857.0,60854.0,0.00786235]
[1719621436448,1.717043,60856.0,60854.0,0.00786235]
[1719621436667,1.817043,60856.0,60853.0,0.00786235]
[1719621436893,0.1,60856.0,60855.0,0.00786235]
[1719621437116,1.118345,60855.0,60849.0,0.24210346]
[1719621437376,1.118345,60855.0,60854.0,0.00786235]
[1719621437833,1.218345,60855.0,60853.0,0.00786235]
[1719621438056,1.363645,60854.0,60853.0,0.00786235]
[1719621438293,1.297745,60854.0,60853.0,0.00786235]
[1719621438512,1.12595228,60854.0,60853.0,0.00786235]
[1719621439231,1.07368724,60854.0,60853.0,0.00786235]
[1719621439459,1.07368724,60854.0,60852.0,0.00786235]
[1719621439693,1.705058,60853.0,60849.0,0.24210346]
[1719621439927,1.23711011,60852.0,60851.0,0.00786235]
[1719621440152,1.25431035,60852.0,60851.0,0.00786235]
[1719621440382,1.21252181,60852.0,60851.0,0.00786235]
[1719621440606,1.01252181,60852.0,60849.0,0.24210346]
[1719621440857,0.11702281,60852.0,60851.0,0.00786235]
[1719621441082,0.0171007,60852.0,60851.0,0.00786235]
[1719621441536,0.9138577,60852.0,60851.0,0.00786235]
[1719621441981,0.996757,60852.0,60851.0,0.00786235]
[1719621442506,0.996757,60852.0,60849.0,0.24210346]
[1719621442727,0.101,60852.0,60851.0,0.01086235]
[1719621442947,0.102,60852.0,60851.0,0.01178635]
[1719621443399,0.101,60852.0,60851.0,0.01178635]
[1719621443646,1.330816,60852.0,60851.0,0.01178635]
[1719621443868,1.246816,60852.0,60851.0,0.01178635]
[1719621444094,1.196816,60852.0,60851.0,0.01178635]
[1719621444315,1.195816,60852.0,60851.0,0.01178635]
[1719621444568,1.31699071,60852.0,60851.0,0.003924]
[1719621444797,1.31699071,60852.0,60851.0,0.006924]
[1719621444798,1.56889243,60852.0,60851.0,0.006924]
[1719621445037,1.57017416,60852.0,60851.0,0.006924]
[1719621445725,1.40884045,60852.0,60851.0,0.006924]
[1719621446157,1.40784045,60852.0,60851.0,0.003924]
[1719621446383,1.40884045,60852.0,60851.0,0.006924]
[1719621446612,1.17304118,60852.0,60851.0,0.003924]
[1719621446855,1.40784118,60852.0,60851.0,0.006924]
[1719621447087,1.5495964,60852.0,60851.0,0.006924]
[1719621447570,1.56173405,60852.0,60851.0,0.006924]
[1719621447809,1.56924118,60852.0,60851.0,0.00667767]
[1719621448720,1.58137883,60852.0,60851.0,0.00667767]
[1719621449177,1.56924118,60852.0,60851.0,0.00667767]
[1719621449678,1.56427638,60852.0,60851.0,0.00667767]
[1719621449905,1.58198021,60852.0,60851.0,0.00667767]
[1719621450196,1.60261243,60852.0,60851.0,0.00167767]
[1719621450427,1.79861243,60852.0,60851.0,0.00167767]
[1719621451582,1.96095141,60852.0,60851.0,0.00167767]
[1719621451840,0.01213765,60844.0,60840.0,0.009207]
[1719621452068,0.2338,60841.0,60840.0,0.009207]
[1719621452300,0.49613371,60841.0,60840.0,0.009207]
[1719621452532,4.408594,60841.0,60840.0,0.009207]
[1719621452785,4.39089017,60841.0,60840.0,0.009207]
[1719621453010,4.40811108,60841.0,60840.0,0.009207]
[1719621453232,3.98802308,60841.0,60840.0,0.009207]
[1719621453473,4.13386874,60841.0,60840.0,0.009207]
[1719621453691,3.95266208,60841.0,60840.0,0.009207]
[1719621454117,4.11600106,60841.0,60840.0,0.009207]
[1719621454350,4.49906341,60841.0,60840.0,0.009207]
[1719621454572,4.70720106,60841.0,60840.0,0.009207]
[1719621454787,4.86953477,60841.0,60840.0,0.009207]
[1719621455462,4.89348638,60841.0,60840.0,0.009207]
[1719621455691,5.09348638,60841.0,60840.0,0.009207]
[1719621455923,4.89305521,60841.0,60840.0,0.009207]
[1719621456377,0.01213765,60838.0,60837.0,0.000924]
[1719621456613,0.17447663,60838.0,60837.0,0.000924]
[1719621456824,0.26233898,60838.0,60837.0,0.000924]
[1719621457044,4.31809363,60838.0,60837.0,0.000924]
[1719621457800,4.3358815,60838.0,60837.0,0.000924]
[1719621458052,4.69521521,60838.0,60837.0,0.000924]
[1719621459220,4.69554289,60838.0,60837.0,0.000924]
[1719621459464,4.68340524,60838.0,60837.0,0.000924]
[1719621459959,4.1748702,60838.0,60837.0,0.000924]
[1719621460193,0.103348,60838.0,60837.0,0.349924]
[1719621460425,0.103348,60838.0,60837.0,0.35778635]
[1719621461090,0.104348,60838.0,60837.0,0.35778635]
[1719621461340,0.103348,60838.0,60837.0,0.35778635]
[1719621461590,0.204348,60838.0,60837.0,0.35778635]
[1719621462335,0.204348,60838.0,60837.0,0.349924]
[1719621463578,0.204348,60838.0,60837.0,0.000924]
[1719621463579,0.25055796,60838.0,60837.0,0.000924]
[1719621464984,0.24955796,60838.0,60837.0,0.000924]
[1719621465274,0.203348,60838.0,60837.0,0.000924]
[1719621465566,0.101,60838.0,60837.0,0.53332533]
[1719621465807,0.001,60838.0,60837.0,0.53332533]
[1719621466043,0.1,60846.0,60837.0,0.52546298]
[1719621466279,1.307378,60846.0,60843.0,0.00786235]
[1719621466514,1.381692,60845.0,60841.0,0.00786235]
[1719621466741,1.381692,60845.0,60842.0,0.00786235]
[1719621466989,1.381692,60845.0,60841.0,0.00786235]
[1719621466990,0.1,60844.0,60841.0,0.00786235]
[1719621467220,1.361628,60844.0,60842.0,0.00786235]
[1719621467462,0.1,60844.0,60841.0,0.00786235]
[1719621467969,0.1,60844.0,60843.0,0.00786235]
[1719621468233,1.302779,60844.0,60843.0,0.00786235]
[1719621468458,1.368779,60845.0,60842.0,0.00786235]
[1719621468687,0.101,60844.0,60843.0,0.00786235]
[1719621468920,1.723879,60844.0,60842.0,0.00786235]
[1719621469157,0.1,60843.0,60842.0,0.00786235]
[1719621469389,0.09980217,60843.0,60842.0,0.00786235]
[1719621470342,0.09980217,60843.0,60838.0,0.16233898]
[1719621470343,0.2338,60847.0,60844.0,0.00786235]
[1719621470590,0.2338,60845.0,60844.0,0.00786235]
[1719621470821,1.76491271,60845.0,60842.0,0.008]
[1719621471048,0.001,60843.0,60842.0,0.014]
[1719621471278,0.001,60843.0,60842.0,0.008]
[1719621471279,1.31688665,60843.0,60842.0,0.008]
[1719621471531,1.41688665,60843.0,60842.0,0.008]
[1719621472460,1.404749,60843.0,60842.0,0.008]
[1719621472914,0.01213765,60840.0,60837.0,0.37098635]
[1719621473196,0.01,60838.0,60837.0,0.363124]
[1719621473438,0.1,60842.0,60837.0,0.363124]
[1719621473439,0.2338,60839.0,60837.0,0.363124]
[1719621473667,1.415773,60838.0,60837.0,0.000924]
[1719621474335,1.415773,60838.0,60837.0,0.006924]
[1719621474560,1.416773,60838.0,60837.0,0.007924]
[1719621474780,1.416773,60838.0,60837.0,0.013924]
[1719621475000,1.416773,60838.0,60837.0,0.02178635]
[1719621475206,1.416773,60838.0,60837.0,0.007924]
[1719621475430,1.57910671,60838.0,60837.0,0.01578635]
[1719621475669,1.416773,60838.0,60837.0,0.007924]
[1719621475864,1.415773,60838.0,60837.0,0.000924]
[1719621476285,1.416773,60838.0,60837.0,0.007924]
[1719621476724,1.415773,60838.0,60837.0,0.000924]
[1719621476942,1.416773,60838.0,60837.0,0.006924]
[1719621477156,1.416773,60838.0,60837.0,0.013924]
[1719621477157,1.417773,60838.0,60837.0,0.013924]
[1719621477370,1.42991065,60838.0,60837.0,0.013924]
[1719621477978,1.417773,60838.0,60837.0,0.013924]
[1719621478596,1.14901009,60838.0,60837.0,0.013924]
[1719621478975,1.16114774,60838.0,60837.0,0.013924]
[1719621479175,1.14901009,60838.0,60837.0,0.013924]
[1719621479375,1.16114774,60838.0,60837.0,0.013924]
[1719621479605,1.14901009,60838.0,60837.0,0.013924]
[1719621480817,1.24901009,60838.0,60837.0,0.013924]
[1719621481450,1.952337,60838.0,60837.0,0.013924]
[1719621481876,1.96447465,60838.0,60837.0,0.013924]
[1719621482286,1.952337,60838.0,60837.0,0.013924]
[1719621482482,1.99911257,60838.0,60837.0,0.013924]
[1719621482694,1.97108457,60838.0,60837.0,0.013924]
[1719621483041,1.056603,60838.0,60837.0,0.013924]
[1719621483919,1.06874065,60838.0,60837.0,0.013924]
[1719621484319,1.056603,60838.0,60837.0,0.013924]
[1719621484531,1.06874065,60838.0,60837.0,0.013924]
[1719621484991,0.01213765,60830.0,60824.0,0.17826935]
[1719621485204,1.528968,60829.0,60826.0,0.00786235]
[1719621485410,0.2338,60827.0,60826.0,0.00786235]
[1719621485651,1.797598,60827.0,60826.0,0.00786235]
[1719621485819,1.690484,60827.0,60826.0,0.00786235]
[1719621486045,1.690484,60827.0,60824.0,0.170407]
[1719621486046,0.588088,60827.0,60824.0,0.170407]
[1719621486277,0.311285,60826.0,60825.0,0.17020133]
[1719621486490,0.3338,60826.0,60825.0,0.52190133]
[1719621488953,0.3348,60826.0,60825.0,0.52190133]
[1719621489822,0.3358,60826.0,60825.0,0.52190133]
[1719621496297,0.3358,60826.0,60825.0,0.51403898]
[1719621497247,0.3358,60826.0,60825.0,0.52190133]
[1719621499875,0.3358,60826.0,60825.0,0.51398218]
[1719621500344,0.3358,60826.0,60825.0,0.52184453]
[1719621502084,0.3358,60826.0,60825.0,0.51398218]
[1719621502306,0.3358,60826.0,60825.0,0.52184453]
[1719621503477,0.1958,60826.0,60825.0,0.52184453]
[1719621503737,0.0958,60826.0,60825.0,0.52184453]
[1719621507236,0.09664,60826.0,60825.0,0.52184453]
[1719621507499,0.09664,60826.0,60825.0,0.51398218]
[1719621507749,0.09664,60826.0,60825.0,0.52184453]
[1719621508194,0.09664,60826.0,60825.0,0.51398218]
[1719621509648,0.09664,60826.0,60825.0,0.52184453]
[1719621509873,0.09664,60826.0,60825.0,0.51398218]
[1719621510106,0.09664,60826.0,60825.0,0.52184453]
[1719621510581,0.09664,60826.0,60825.0,0.51398218]
[1719621510836,0.09664,60826.0,60825.0,0.52184453]
[1719621511386,0.09664,60826.0,60825.0,0.33134453]
[1719621511619,0.09664,60826.0,60825.0,0.00786235]
[1719621511879,0.19664,60826.0,60825.0,0.00786235]
[1719621512109,0.19664,60826.0,60819.0,0.166424]
[1719621512110,0.01213765,60824.0,60819.0,0.000924]
[1719621512346,0.0938,60820.0,60819.0,0.000924]
[1719621512597,2.89342,60820.0,60819.0,0.000924]
[1719621512829,2.89342,60820.0,60815.0,0.009207]
[1719621512830,0.3582,60819.0,60815.0,0.009207]
[1719621513079,0.0938,60816.0,60815.0,0.009207]
[1719621513311,1.9661064,60816.0,60815.0,0.009207]
[1719621513512,3.81707911,60816.0,60815.0,0.009207]
[1719621513790,3.16481011,60816.0,60815.0,0.009207]
[1719621514037,3.14512126,60816.0,60815.0,0.009207]
[1719621514296,3.14512126,60816.0,60807.0,0.009196]
[1719621514297,0.01213765,60813.0,60807.0,0.009196]
[1719621514519,2.91793564,60816.0,60807.0,0.009196]
[1719621514520,0.2346,60809.0,60807.0,0.009196]